bitfinex/quotes_ETHUSD_20241019
["timestamp","ask_amount","ask_price","bid_price","bid_amount"]
[1729319464902,4.57799,2646.0,2645.5,3.77992]
[1729319466684,0.7987,2646.0,2645.6,3.77982]
[1729319467911,0.7987,2646.0,2645.5,8.31363]
[1729319468215,0.7987,2646.0,2645.5,8.31362]
[1729319468573,0.7987,2646.0,2645.5,4.53371]
[1729319468776,0.7987,2646.0,2645.5,8.31362]
[1729319470120,0.7987,2646.0,2645.5,4.53371]
[1729319470702,0.7987,2646.0,2645.5,4.5337]
[1729319471822,0.7987,2646.0,2645.5,8.31363]
[1729319473011,0.7987,2646.0,2645.5,4.5337]
[1729319473325,0.7987,2646.0,2645.5,8.3136]
[1729319473975,0.7987,2646.0,2645.6,3.77984]
[1729319491322,0.7987,2646.0,2645.5,4.53367]
[1729319491540,0.7987,2646.0,2645.5,3.77987]
[1729319492783,0.7987,2646.0,2645.5,7.55979]
[1729319493041,0.7987,2646.0,2645.6,3.77984]
[1729319493427,0.7685,2645.9,2645.3,3.78019]
[1729319493746,0.7685,2645.8,2645.4,3.78012]
[1729319495614,0.7685,2645.7,2645.3,3.78019]
[1729319498309,0.7685,2645.7,2645.4,0.28330496]
[1729319498545,0.7685,2645.7,2645.3,7.56039]
[1729319498756,0.7685,2645.7,2645.4,0.28330472]
[1729319499043,0.7685,2645.7,2645.3,7.56039]
[1729319499245,0.7685,2645.7,2645.4,0.28330116]
[1729319499444,0.7685,2645.7,2645.3,7.56039]
[1729319499651,0.7685,2645.7,2645.4,0.28330652]
[1729319499803,0.7685,2645.7,2645.3,7.56039]
[1729319500012,0.7685,2645.7,2645.4,0.28330652]
[1729319500250,0.7685,2645.7,2645.3,7.56039]
[1729319500490,0.7685,2645.7,2645.4,0.28331246]
[1729319500636,0.7685,2645.7,2645.3,7.56039]
[1729319500942,0.7685,2645.7,2645.4,0.28331249]
[1729319501141,0.7685,2645.7,2645.3,7.56039]
[1729319501377,0.7685,2645.7,2645.4,0.28330819]
[1729319501543,0.7685,2645.7,2645.3,7.56039]
[1729319501836,0.7685,2645.7,2645.4,0.28331757]
[1729319502046,0.7685,2645.7,2645.3,7.56039]
[1729319502281,0.7685,2645.7,2645.4,0.28331309]
[1729319502584,0.7685,2645.7,2645.3,7.56039]
[1729319502876,0.7685,2645.7,2645.4,0.28332069]
[1729319503072,0.7685,2645.7,2645.3,7.56039]
[1729319503284,0.7685,2645.7,2645.4,0.28331635]
[1729319503459,0.7685,2645.7,2645.3,7.56039]
[1729319503646,0.7685,2645.7,2645.4,0.28332008]
[1729319503848,0.7685,2645.7,2645.3,7.56039]
[1729319504186,0.7685,2645.7,2645.4,0.28331999]
[1729319504370,0.7685,2645.7,2645.4,3.78012]
[1729319508197,0.7685,2645.7,2645.3,3.78019]
[1729319508397,3.77925,2646.1,2645.6,3.77978]
[1729319508398,0.7621,2646.1,2645.6,3.77978]
[1729319509129,4.54127,2646.1,2645.6,3.77978]
[1729319509471,4.54127,2646.1,2645.6,3.77986]
[1729319509472,0.7621,2646.1,2645.6,3.77986]
[1729319509674,1.972122,2646.1,2645.6,3.77986]
[1729319510175,5.751272,2646.1,2645.6,3.77986]
[1729319510381,0.7621,2646.0,2645.6,3.77986]
[1729319520479,0.7621,2646.0,2645.7,7.55933]
[1729319520832,0.7621,2646.0,2645.7,3.77962]
[1729319521174,0.7621,2646.0,2645.9,3.77943]
[1729319521347,0.7994,2646.2,2645.9,3.77943]
[1729319530557,3.78,2646.3,2646.0,0.7585]
[1729319530953,3.78,2646.3,2646.1,3.77912]
[1729319532903,0.7994,2646.2,2645.9,3.77941]
[1729319535998,0.7994,2646.2,2645.9,7.55877]
[1729319536513,0.7994,2646.2,2645.9,3.77936]
[1729319536663,0.7994,2646.2,2645.9,3.77935]
[1729319536861,0.7994,2646.2,2645.9,7.5587]
[1729319537093,0.7994,2646.2,2645.9,3.77935]
[1729319537360,0.7994,2646.2,2645.9,7.55869]
[1729319537767,0.7994,2646.2,2645.9,3.77934]
[1729319537982,0.7994,2646.2,2646.0,3.77927]
[1729319539984,3.78,2646.3,2646.0,3.77927]
[1729319542029,3.78,2646.3,2646.0,7.55849]
[1729319542246,3.78,2646.3,2646.1,3.77912]
[1729319542821,3.78,2646.3,2646.1,3.77914]
[1729319543806,3.78,2646.3,2646.0,8.32382]
[1729319544025,3.78,2646.3,2646.0,4.5446]
[1729319544495,3.78,2646.3,2646.1,3.77911]
[1729319545302,3.78,2646.3,2646.0,8.3238]
[1729319546136,3.78,2646.3,2646.0,4.5446]
[1729319546337,3.78,2646.3,2646.0,8.32381]
[1729319546871,3.78,2646.3,2646.0,4.5446]
[1729319548355,3.78,2646.3,2646.0,8.3238]
[1729319548572,3.78,2646.3,2646.0,4.5446]
[1729319561906,3.78,2646.3,2646.1,3.77906]
[1729319562252,3.78,2646.3,2646.0,8.32381]
[1729319562556,3.78,2646.3,2646.0,4.5446]
[1729319564526,3.78,2646.3,2646.1,3.77914]
[1729319565523,3.78,2646.3,2646.0,4.5446]
[1729319566551,3.78,2646.3,2646.0,3.7792]
[1729319575958,3.78,2646.3,2646.1,0.28326314]
[1729319576159,3.78,2646.3,2646.0,3.7792]
[1729319578860,3.78,2646.3,2646.0,7.5584]
[1729319579158,3.78,2646.3,2646.1,0.2832868]
[1729319579364,3.78,2646.3,2646.0,3.77917]
[1729319579570,3.78,2646.3,2646.1,0.28329838]
[1729319579772,3.78,2646.3,2646.0,3.77917]
[1729319579931,3.78,2646.3,2646.1,0.28329956]
[1729319580134,3.78,2646.3,2646.0,3.77917]
[1729319580335,3.78,2646.3,2646.1,0.28329956]
[1729319580574,3.78,2646.3,2646.0,3.77917]
[1729319580867,3.78,2646.3,2646.1,0.28331528]
[1729319581074,3.78,2646.3,2646.0,3.77917]
[1729319581282,3.78,2646.3,2646.1,0.28331528]
[1729319581431,3.78,2646.3,2646.0,3.77917]
[1729319581634,3.78,2646.3,2646.1,0.2833288]
[1729319581835,3.78,2646.3,2646.0,3.77917]
[1729319582032,3.78,2646.3,2646.1,0.28332952]
[1729319582272,3.78,2646.3,2646.0,7.55837]
[1729319582447,3.78,2646.3,2646.1,3.77913]
[1729319582650,3.78,2646.3,2646.0,3.77917]
[1729319582850,3.78,2646.3,2646.1,0.28334567]
[1729319583038,3.78,2646.3,2646.0,3.77917]
[1729319583239,3.78,2646.3,2646.1,0.28334679]
[1729319583460,3.78,2646.3,2646.0,3.77917]
[1729319583663,3.78,2646.3,2646.1,0.28336929]
[1729319583875,3.78,2646.3,2646.0,3.77917]
[1729319584057,3.78,2646.3,2646.1,0.28336938]
[1729319584254,3.78,2646.3,2646.0,3.77917]
[1729319584470,3.78,2646.3,2646.1,0.28338082]
[1729319584660,3.78,2646.3,2646.0,3.77917]
[1729319584866,3.78,2646.3,2646.1,0.28338168]
[1729319585071,3.78,2646.3,2646.0,3.77917]
[1729319585276,3.78,2646.3,2646.1,0.28338149]
[1729319585483,3.78,2646.3,2646.0,3.77917]
[1729319585794,3.78,2646.3,2646.1,0.28339815]
[1729319586146,3.78,2646.3,2646.0,3.77917]
[1729319586351,3.78,2646.3,2646.1,0.28339711]
[1729319586646,3.78,2646.3,2646.0,3.77917]
[1729319586846,3.78,2646.3,2646.1,0.28340519]
[1729319587052,3.78,2646.3,2646.0,3.77917]
[1729319587251,3.78,2646.3,2646.1,0.2834048]
[1729319587487,3.78,2646.3,2646.0,3.77917]
[1729319587692,3.78,2646.3,2646.1,0.28341355]
[1729319587887,3.78,2646.3,2646.0,3.77917]
[1729319588181,3.78,2646.3,2646.1,0.28341355]
[1729319588397,3.78,2646.3,2646.0,3.77917]
[1729319588551,3.78,2646.3,2646.1,0.28341343]
[1729319588886,3.78,2646.3,2646.0,3.77917]
[1729319589069,3.78,2646.3,2646.1,0.28341419]
[1729319589275,3.78,2646.3,2646.0,3.77917]
[1729319589459,3.78,2646.3,2646.1,0.28341368]
[1729319589662,3.78,2646.3,2646.0,4.96715213]
[1729319589865,3.78,2646.3,2646.1,0.28340854]
[1729319590064,3.78,2646.3,2646.0,4.96715213]
[1729319590275,3.78,2646.3,2646.1,0.28340722]
[1729319590491,3.78,2646.3,2646.0,4.96715213]
[1729319590653,3.78,2646.3,2646.1,0.28340711]
[1729319590850,3.78,2646.3,2646.0,3.77917]
[1729319591054,3.78,2646.3,2646.1,0.28341035]
[1729319591287,3.78,2646.3,2646.0,3.77917]
[1729319591488,3.78,2646.3,2646.1,0.2834107]
[1729319591689,3.78,2646.3,2646.0,3.77917]
[1729319591991,3.78,2646.3,2646.1,0.28341046]
[1729319592191,3.78,2646.3,2646.0,3.77917]
[1729319592488,3.78,2646.3,2646.1,0.28341038]
[1729319592689,3.78,2646.3,2646.0,3.77917]
[1729319592894,3.78,2646.3,2646.1,0.28341038]
[1729319593188,3.78,2646.3,2646.0,3.77917]
[1729319593364,3.78,2646.3,2646.1,0.28341118]
[1729319593567,3.78,2646.3,2646.0,3.77917]
[1729319593866,3.78,2646.3,2646.1,0.28341119]
[1729319594050,3.78,2646.3,2646.1,0.56682238]
[1729319594256,3.78,2646.3,2646.0,3.77917]
[1729319594462,3.78,2646.3,2646.1,0.28341115]
[1729319594811,3.78,2646.3,2646.0,3.77917]
[1729319595112,3.78,2646.3,2646.1,0.28341113]
[1729319595266,3.78,2646.3,2646.0,3.77917]
[1729319595466,3.78,2646.3,2646.1,0.28341099]
[1729319595731,3.78,2646.3,2646.0,3.77917]
[1729319595874,3.78,2646.3,2646.1,0.28341099]
[1729319596067,3.78,2646.3,2646.0,3.77917]
[1729319596267,3.78,2646.3,2646.1,0.28341119]
[1729319596479,3.78,2646.3,2646.0,7.55839]
[1729319596680,3.78,2646.3,2646.1,0.28341085]
[1729319596884,3.78,2646.3,2646.0,7.55839]
[1729319597108,3.78,2646.3,2646.1,0.28341086]
[1729319597321,3.78,2646.3,2646.0,7.55839]
[1729319597530,3.78,2646.3,2646.1,0.28341109]
[1729319597715,3.78,2646.3,2646.0,8.74637213]
[1729319598118,3.78,2646.3,2646.1,0.28340809]
[1729319598314,3.78,2646.3,2646.0,4.96715213]
[1729319598630,3.78,2646.3,2646.1,0.2834061]
[1729319598804,3.78,2646.3,2646.0,7.55839]
[1729319598987,3.78,2646.3,2646.1,0.28341014]
[1729319599189,3.78,2646.3,2646.0,3.77917]
[1729319599424,3.78,2646.3,2646.1,0.28341184]
[1729319599733,3.78,2646.3,2646.0,7.55838]
[1729319599891,3.78,2646.3,2646.1,0.28341183]
[1729319600089,3.78,2646.3,2646.0,7.55837]
[1729319600329,3.78,2646.3,2646.1,0.2834118]
[1729319600528,3.78,2646.3,2646.0,4.96715213]
[1729319600736,3.78,2646.3,2646.1,0.2834137]
[1729319600933,3.78,2646.3,2646.0,4.96715213]
[1729319601100,3.78,2646.3,2646.1,0.2834137]
[1729319601308,3.78,2646.3,2646.0,8.74635213]
[1729319601621,3.78,2646.3,2646.1,0.28341614]
[1729319601827,3.78,2646.3,2646.0,8.74635213]
[1729319602044,3.78,2646.3,2646.1,0.28341615]
[1729319602227,3.78,2646.3,2646.0,7.55836]
[1729319602431,3.78,2646.3,2646.1,0.28342001]
[1729319602624,3.78,2646.3,2646.0,8.74634213]
[1729319602814,3.78,2646.3,2646.1,0.28341772]
[1729319603015,3.78,2646.3,2646.0,8.74634213]
[1729319603254,3.78,2646.3,2646.1,0.28341702]
[1729319603541,3.78,2646.3,2646.0,8.74634213]
[1729319603716,3.78,2646.3,2646.1,0.28342023]
[1729319603916,3.78,2646.3,2646.0,8.74634213]
[1729319604128,3.78,2646.3,2646.1,0.28342025]
[1729319604334,3.78,2646.3,2646.0,8.74634213]
[1729319604508,3.78,2646.3,2646.1,0.2834206]
[1729319604710,3.78,2646.3,2646.0,8.74634213]
[1729319604910,3.78,2646.3,2646.1,0.28342058]
[1729319605132,3.78,2646.3,2646.0,8.74636213]
[1729319605335,3.78,2646.3,2646.1,0.28342001]
[1729319605537,3.78,2646.3,2646.0,4.96715213]
[1729319605732,3.78,2646.3,2646.1,0.28342142]
[1729319605903,3.78,2646.3,2646.0,4.96715213]
[1729319606109,3.78,2646.3,2646.1,0.28342139]
[1729319606345,3.78,2646.3,2646.0,8.74637213]
[1729319606547,3.78,2646.3,2646.1,0.28342037]
[1729319606752,3.78,2646.3,2646.0,8.74637213]
[1729319606911,3.78,2646.3,2646.1,0.28342037]
[1729319607109,3.78,2646.3,2646.0,8.74637213]
[1729319607333,3.78,2646.3,2646.1,0.28341994]
[1729319607654,3.78,2646.3,2646.0,8.74637213]
[1729319607812,3.78,2646.3,2646.1,0.28341973]
[1729319608138,3.78,2646.3,2646.0,8.74637213]
[1729319608343,3.78,2646.3,2646.1,0.28341939]
[1729319608547,3.78,2646.3,2646.1,3.77914]
[1729319608756,3.78,2646.3,2646.0,4.96715213]
[1729319608951,3.78,2646.3,2646.1,0.28341904]
[1729319609106,3.78,2646.3,2646.0,8.74637213]
[1729319609307,3.78,2646.3,2646.1,0.28341879]
[1729319609574,3.78,2646.3,2646.0,8.74637213]
[1729319610073,3.78,2646.3,2646.0,4.96715213]
[1729319610273,3.78,2646.3,2646.1,0.28341875]
[1729319610481,3.78,2646.3,2646.0,4.96715213]
[1729319610655,3.78,2646.3,2646.1,0.28342042]
[1729319610966,3.78,2646.3,2646.0,3.77917]
[1729319610967,3.78,2646.3,2646.0,8.74635213]
[1729319611172,3.78,2646.3,2646.1,0.28341812]
[1729319611475,3.78,2646.3,2646.0,4.96715213]
[1729319611638,3.78,2646.3,2646.1,0.28341772]
[1729319611840,3.78,2646.3,2646.0,4.96715213]
[1729319612141,3.78,2646.3,2646.1,0.28341773]
[1729319612478,3.78,2646.3,2646.0,4.96715213]
[1729319612649,3.78,2646.3,2646.1,0.28341583]
[1729319612848,3.78,2646.3,2646.2,0.28341504]
[1729319617444,3.78,2646.3,2646.2,0.28338779]
[1729319618784,3.78,2646.3,2646.1,3.77912]
[1729319619176,3.78,2646.3,2646.2,0.28338793]
[1729319621052,3.78,2646.3,2646.1,3.77912]
[1729319621278,3.78,2646.3,2646.2,0.28338455]
[1729319621645,3.78,2646.3,2646.1,3.77912]
[1729319621845,3.78,2646.3,2646.2,0.28338552]
[1729319624058,3.78,2646.3,2646.2,5.04860929]
[1729319624268,0.8022,2646.8,2646.5,3.77853]
[1729319626561,4.58016,2647.0,2646.5,3.77853]
[1729319626884,4.58016,2647.0,2646.5,3.77849]
[1729319627085,4.58016,2647.0,2646.5,4.239609]
[1729319627289,4.58016,2647.0,2646.5,5.072309]
[1729319627474,4.58016,2647.0,2646.5,8.850799]
[1729319628343,4.58016,2647.0,2646.5,5.072309]
[1729319630473,8.3581,2647.0,2646.5,5.072309]
[1729319632001,4.58014,2647.0,2646.5,5.072309]
[1729319632374,8.35809,2647.0,2646.5,5.072309]
[1729319634799,3.77808,2646.9,2646.5,1.293819]
[1729319637284,3.77808,2646.9,2646.5,0.8327]
[1729319642721,4.58014,2647.0,2646.5,0.8327]
[1729319642935,3.77814,2646.8,2646.5,0.8327]
[1729319652741,3.77814,2646.8,2646.5,0.83123383]
[1729319655552,3.77795,2647.0,2646.5,0.83123383]
[1729319655851,3.77808,2646.9,2646.6,0.7934]
[1729319662351,4.32609628,2647.1,2646.6,0.7934]
[1729319662562,3.7779,2647.0,2646.6,0.7934]
[1729319666243,4.32609628,2647.1,2646.6,0.7934]
[1729319666913,3.77787,2647.0,2646.6,0.7934]
[1729319667343,3.77787,2647.0,2646.7,0.7869]
[1729319674853,4.32603628,2647.1,2646.7,0.7869]
[1729319678565,4.91720885,2647.1,2646.7,0.7869]
[1729319680723,0.59117257,2647.1,2646.9,0.7922]
[1729319680919,0.59117257,2647.1,2646.9,4.5702]
[1729319681161,0.59117257,2647.1,2647.0,0.7922]
[1729319691200,0.59117257,2647.1,2647.0,4.57006]
[1729319700877,0.59117257,2647.1,2647.0,4.85270973]
[1729319701069,4.58823,2647.7,2647.1,4.53021]
[1729319701272,0.59102307,2647.3,2647.1,4.53021]
[1729319701471,4.58823,2647.7,2647.2,3.77756]
[1729319701784,0.5910143,2647.3,2647.2,3.77756]
[1729319701986,4.58823,2647.7,2647.2,3.77756]
[1729319702402,0.59101409,2647.3,2647.2,4.5034679]
[1729319702712,4.58823,2647.7,2647.2,4.5034679]
[1729319702909,0.59101594,2647.3,2647.2,4.5034679]
[1729319703203,4.58823,2647.7,2647.2,4.5034679]
[1729319703463,0.59101596,2647.3,2647.2,4.5034679]
[1729319703614,4.58823,2647.7,2647.2,4.5034679]
[1729319703791,4.58823,2647.7,2647.3,0.52560679]
[1729319704180,0.59100639,2647.6,2647.3,0.52560679]
[1729319704983,0.59100639,2647.6,2647.3,1.27820679]
[1729319708203,0.59100639,2647.6,2647.3,5.05562679]
[1729319710705,0.59100639,2647.6,2647.3,4.30302679]
[1729319710886,0.59100639,2647.6,2647.4,0.7526]
[1729319718631,0.59100639,2647.6,2647.2,3.77756]
[1729319726650,0.59100639,2647.6,2647.1,0.7917]
[1729319726848,0.59100639,2647.6,2647.1,4.56931]
[1729319727051,0.59100639,2647.6,2647.2,3.77752]
[1729319727257,0.59100639,2647.6,2647.2,3.77757]
[1729319736452,0.59100639,2647.6,2647.3,3.77743]
[1729319739544,0.59100639,2647.6,2647.4,3.77725]
[1729319739754,0.59100639,2647.6,2647.3,3.77743]
[1729319747276,0.59100639,2647.6,2647.3,7.55478]
[1729319747485,0.59100639,2647.6,2647.3,3.77735]
[1729319752978,0.59100639,2647.6,2647.3,7.55471]
[1729319753200,0.59100639,2647.6,2647.3,3.77735]
[1729319753712,0.59100639,2647.6,2647.4,3.77726]
[1729319758518,0.59100639,2647.6,2647.3,3.77743]
[1729319758687,0.59100639,2647.6,2647.3,7.55477]
[1729319758877,0.59100639,2647.6,2647.3,3.77734]
[1729319759682,0.59100639,2647.6,2647.3,7.55469]
[1729319760425,0.59100639,2647.6,2647.4,3.77726]
[1729319760923,0.59100639,2647.6,2647.5,3.77714]
[1729319762224,0.7913,2647.7,2647.5,3.77714]
[1729319764605,0.7913,2647.7,2647.3,4.54979]
[1729319764804,0.7913,2647.7,2647.4,4.06019925]
[1729319765032,0.7913,2647.7,2647.4,3.77728]
[1729319769116,0.7913,2647.7,2647.3,4.54979]
[1729319769322,0.7913,2647.7,2647.4,0.28304709]
[1729319769522,0.7913,2647.7,2647.3,8.32714]
[1729319769721,0.7913,2647.7,2647.4,0.28304752]
[1729319769957,0.7913,2647.7,2647.3,9.43721483]
[1729319770153,0.7913,2647.7,2647.4,0.28304745]
[1729319770362,0.7913,2647.7,2647.4,3.77726]
[1729319770654,0.7913,2647.7,2647.3,5.65986483]
[1729319770855,0.7913,2647.7,2647.4,0.28303497]
[1729319771098,0.7668,2647.5,2647.1,1.18963216]
[1729319771256,0.7668,2647.5,2647.0,3.77777]
[1729319771456,4.54395,2647.5,2647.0,3.77777]
[1729319771821,4.54398,2647.5,2647.0,3.77777]
[1729319774047,3.7773,2647.4,2647.0,3.77785]
[1729319774249,0.7668,2647.3,2647.0,3.77785]
[1729319775134,0.7668,2647.3,2647.1,0.28300523]
[1729319775334,0.7668,2647.3,2647.0,3.77785]
[1729319779590,0.7668,2647.3,2646.9,3.77791]
[1729319781460,0.7668,2647.3,2646.7,4.96786216]
[1729319781665,0.7668,2647.3,2646.8,0.28292717]
[1729319781834,0.7668,2647.3,2646.9,3.778]
[1729319782229,3.77747,2647.3,2646.8,3.77811]
[1729319782564,0.7558,2647.2,2646.8,3.77811]
[1729319783861,0.7558,2647.4,2647.1,3.77764]
[1729319784178,0.7558,2647.4,2647.2,3.7775]
[1729319784674,0.7558,2647.4,2647.2,3.77748]
[1729319784970,0.7558,2647.7,2647.1,3.77764]
[1729319785278,0.7558,2647.7,2647.2,3.77744]
[1729319785473,0.7558,2647.7,2647.3,3.77736]
[1729319792781,4.53268,2647.7,2647.2,3.77757]
[1729319794288,0.7558,2647.7,2647.3,3.77735]
[1729319806869,4.53266,2647.7,2647.3,3.77735]
[1729319807270,4.53266,2647.7,2647.1,0.28272909]
[1729319807495,4.53266,2647.7,2647.2,3.77757]
[1729319807805,0.783,2647.6,2647.2,3.77757]
[1729319810206,0.783,2647.6,2647.3,3.77731]
[1729319813484,0.783,2647.9,2647.3,3.77731]
[1729319813715,0.783,2647.9,2647.4,3.77729]
[1729319814695,0.783,2647.9,2647.5,3.77702]
[1729319824252,3.77661,2647.9,2647.4,3.77728]
[1729319824409,0.8089,2647.8,2647.4,3.77728]
[1729319824618,0.8089,2647.8,2647.4,4.6859952]
[1729319824811,1.39988056,2647.8,2647.4,4.6859952]
[1729319825726,0.39447085,2647.7,2647.4,4.6859952]
[1729319826665,0.39447085,2647.7,2647.5,3.77707]
[1729319835757,0.39447085,2647.7,2647.5,3.77706]
[1729319843304,0.39447085,2647.7,2647.6,4.5891]
[1729319851006,0.59098056,2647.8,2647.6,4.5891]
[1729319851717,0.59098056,2647.8,2647.6,4.58902]
[1729319854958,0.59098056,2647.8,2647.6,0.8121]
[1729319855830,0.59098056,2647.8,2647.6,4.58909]
[1729319856033,0.59098056,2647.8,2647.6,5.32152383]
[1729319856627,0.59098056,2647.8,2647.6,1.54453383]
[1729319861386,0.59098056,2647.8,2647.6,0.8121]
[1729319862057,0.59098056,2647.8,2647.7,0.28306484]
[1729319862258,0.59098056,2647.8,2647.6,0.8121]
[1729319862791,0.59098056,2647.8,2647.6,4.5891]
[1729319865107,0.59098056,2647.8,2647.6,0.8121]
[1729319868276,0.59098056,2647.8,2647.6,4.58909]
[1729319869099,0.59098056,2647.8,2647.6,5.54466722]
[1729319870290,0.59098056,2647.8,2647.6,1.76767722]
[1729319870498,0.59098056,2647.8,2647.6,0.95557722]
[1729319874286,0.59098056,2647.8,2647.6,4.73255722]
[1729319877434,0.59098056,2647.8,2647.7,4.05995291]
[1729319877638,0.59098056,2647.8,2647.7,4.05995591]
[1729319878958,0.59098056,2647.8,2647.7,3.77686]
[1729319879241,0.59098056,2647.8,2647.7,0.56615626]
[1729319879408,0.59098056,2647.8,2647.7,4.34300734]
[1729319879733,0.59098056,2647.8,2647.7,0.56614734]
[1729319881534,0.59098056,2647.8,2647.7,0.28307925]
[1729319883149,0.59098056,2647.8,2647.7,0.56617714]
[1729319886036,0.59098056,2647.8,2647.7,0.56622147]
[1729319886541,0.59098056,2647.8,2647.7,0.28309789]
[1729319888031,0.59098056,2647.8,2647.7,0.56625468]
[1729319895352,0.59098056,2647.8,2647.7,0.28309789]
[1729319895583,0.59098056,2647.8,2647.7,0.56625545]
[1729319896854,0.59098056,2647.8,2647.7,0.28309789]
[1729319898193,0.59098056,2647.8,2647.6,3.77689]
[1729319900595,0.59098056,2647.8,2647.7,0.28295499]
[1729319900894,0.59098056,2647.8,2647.6,3.77689]
[1729319903964,0.59098056,2647.8,2647.7,0.28295625]
[1729319904302,0.59098056,2647.8,2647.6,8.35321]
[1729319904502,0.59098056,2647.8,2647.7,0.2829576]
[1729319906163,0.59098056,2647.8,2647.6,5.68897183]
[1729319907503,0.59098056,2647.8,2647.6,4.57629]
[1729319908801,0.59098056,2647.8,2647.6,3.77689]
[1729319909005,0.59098056,2647.8,2647.7,0.28295985]
[1729319909300,0.7695,2647.6,2647.3,1.18963216]
[1729319909502,0.7695,2647.6,2647.4,0.28303753]
[1729319909691,0.7695,2647.6,2647.2,1.18963216]
[1729319909891,0.7695,2647.6,2647.3,0.28306159]
[1729319910207,0.7695,2647.6,2647.4,0.28306159]
[1729319910410,0.7695,2647.6,2647.3,3.77742]
[1729319910566,0.7695,2647.6,2647.4,0.28299671]
[1729319910761,0.7695,2647.6,2647.3,3.77742]
[1729319911202,0.7695,2647.6,2647.4,0.2829931]
[1729319911366,0.7695,2647.6,2647.3,3.77742]
[1729319911567,0.7695,2647.6,2647.4,0.28295136]
[1729319911789,0.7695,2647.6,2647.3,3.77742]
[1729319912305,0.7695,2647.6,2647.3,3.77735]
[1729319912465,1.36048056,2647.8,2647.4,3.77726]
[1729319913190,1.36048056,2647.8,2647.3,7.5547]
[1729319913392,1.36048056,2647.8,2647.3,3.77735]
[1729319913596,5.13720056,2647.8,2647.3,4.57675]
[1729319913795,5.13720056,2647.8,2647.3,8.3541]
[1729319914002,5.13720056,2647.8,2647.3,4.57675]
[1729319914716,1.36048056,2647.8,2647.4,3.77726]
[1729319920384,1.36048056,2647.8,2647.3,8.35411]
[1729319920583,1.36048056,2647.8,2647.3,4.57675]
[1729319920787,4.36770056,2647.8,2647.3,3.77735]
[1729319921015,0.8286,2647.7,2647.3,3.77735]
[1729319922397,4.60547,2647.7,2647.2,3.77755]
[1729319922698,0.8286,2647.6,2647.2,3.77755]
[1729319923501,0.8286,2647.6,2647.3,3.77742]
[1729319923830,0.8286,2647.6,2647.2,3.7775]
[1729319924127,0.8286,2647.6,2647.1,3.7777]
[1729319924321,0.8286,2647.6,2647.2,3.77755]
[1729319924826,1.41959808,2647.6,2647.3,3.77743]
[1729319926743,1.41959808,2647.6,2647.2,3.77757]
[1729319928588,1.41959808,2647.6,2647.2,7.55507]
[1729319930526,0.59099808,2647.6,2647.2,3.7775]
[1729319930761,0.8286,2647.5,2647.2,3.7775]
[1729319930960,3.77731,2647.4,2646.9,2.39659499]
[1729319931159,0.8286,2647.3,2646.8,4.96769216]
[1729319931342,0.8286,2647.3,2646.9,3.77795]
[1729319932265,3.78,2647.3,2646.6,1.18963216]
[1729319932465,1.584329,2647.2,2646.5,0.7546]
[1729319932637,0.8286,2647.2,2646.8,3.77807]
[1729319942011,4.60618,2647.2,2646.8,3.77807]
[1729319944914,4.60618,2647.2,2646.7,3.77828]
[1729319945495,0.8286,2647.2,2646.8,4.58574]
[1729319945700,0.8286,2647.2,2646.8,8.3638]
[1729319946925,0.8286,2647.2,2646.8,4.58566]
[1729319947487,0.8286,2647.2,2646.8,8.36372]
[1729319947726,0.8286,2647.2,2646.8,9.200092]
[1729319948249,0.8286,2647.2,2646.8,5.422032]
[1729319949940,0.8286,2647.2,2646.8,9.200102]
[1729319950255,0.8286,2647.2,2646.8,5.422032]
[1729319951115,0.8286,2647.2,2646.9,3.77799]
[1729319951639,0.8286,2647.2,2646.8,5.422032]
[1729319952854,0.82736396,2647.2,2646.8,5.422032]
[1729319958353,0.82736396,2647.2,2646.8,9.200092]
[1729319958523,0.82736396,2647.2,2646.8,5.422032]
[1729319958725,0.82736396,2647.2,2646.8,9.200102]
[1729319959059,0.82736396,2647.2,2646.9,4.6979202]
[1729319959275,3.78,2647.3,2647.0,3.77778]
[1729319959427,3.78,2647.3,2647.0,7.55557]
[1729319959818,3.78,2647.3,2647.0,3.77778]
[1729319982898,3.78,2647.3,2647.1,3.77762]
[1729319983103,3.78,2647.3,2647.0,4.56938]
[1729319983307,3.78,2647.3,2647.0,8.92306122]
[1729319984371,3.78,2647.3,2647.0,5.14528122]
[1729319984577,3.78,2647.3,2647.1,3.7777]
[1729319985290,3.78,2647.3,2647.1,3.77761]
[1729319985505,3.78,2647.3,2647.2,3.77757]
[1729319985719,3.78,2647.3,2647.2,4.66985512]
[1729320000800,3.78,2647.3,2647.1,3.77764]
[1729320001004,0.7706,2647.2,2647.0,3.77781]
[1729320003445,0.7706,2647.2,2646.9,1.18963216]
[1729320003744,0.7706,2647.2,2646.9,3.77797]
[1729320006705,0.7706,2647.2,2647.0,3.77784]
[1729320008446,0.7706,2647.2,2646.8,7.55608]
[1729320008629,0.7706,2647.2,2646.9,0.28309283]
[1729320008835,0.7706,2647.2,2646.8,7.55608]
[1729320009034,0.7706,2647.2,2646.9,0.28309516]
[1729320009231,0.7706,2647.2,2646.8,7.55608]
[1729320009442,0.7706,2647.2,2646.9,4.06105348]
[1729320009618,0.7706,2647.2,2646.9,3.77797]
[1729320012744,0.7706,2647.2,2646.6,4.96796216]
[1729320012946,0.7706,2647.1,2646.7,0.28306684]
[1729320013157,0.7706,2647.1,2646.6,7.55669]
[1729320013861,4.54832,2647.1,2646.6,3.77833]
[1729320014153,0.7706,2646.9,2646.5,3.77855]
[1729320014310,1.225454,2646.9,2646.5,3.77855]